fUST/lending_fUST_20260525
["ID","MTS","AMOUNT","RATE_DAILY","PERIOD"]
[422957301,1779675604000,-22.36105746,0.00013699,7]
[422957300,1779675604000,-276.0,0.00013178,3]
[422957302,1779675604000,-148.39560855,0.00013699,7]
[422957304,1779675604000,-698.01199054,0.00013998,2]
[422957303,1779675604000,-153.59240091,0.00013994,2]
[422957299,1779675604000,-263.62059696,0.00012898,2]
[422957305,1779675605000,-458.98800946,0.00013998,2]
[422957307,1779675605000,-322.19955605,0.00013999,2]
[422957306,1779675605000,-218.81243449,0.00013999,2]
[422957308,1779675605000,-177.80044395,0.00013999,2]
[422957313,1779675605000,-280.10342238,0.00013999,2]
[422957310,1779675605000,-322.19955605,0.00013999,2]
[422957311,1779675605000,-177.80044395,0.00013999,2]
[422957312,1779675605000,-500.0,0.00013999,2]
[422957314,1779675605000,-42.09613367,0.00013999,2]
[422957309,1779675605000,-500.0,0.00013999,2]
[422957317,1779675606000,-357.56113367,0.00014,2]
[422957316,1779675606000,-500.0,0.00013999,2]
[422957318,1779675606000,-1000.0,0.00014,2]
[422957319,1779675606000,-1000.0,0.00014,2]
[422957315,1779675606000,-142.43886633,0.00013999,2]
[422957321,1779675607000,-1000.0,0.00014,2]
[422957320,1779675607000,-1000.0,0.00014,2]
[422957322,1779675607000,-1000.0,0.00014,2]
[422957325,1779675608000,-1000.0,0.00014,2]
[422957324,1779675608000,-1000.0,0.00014,2]
[422957323,1779675608000,-1000.0,0.00014,2]
[422957328,1779675609000,-1000.0,0.00014,2]
[422957326,1779675609000,-1000.0,0.00014,2]
[422957327,1779675609000,-1000.0,0.00014,2]
[422957331,1779675610000,-1000.0,0.00014,2]
[422957330,1779675610000,-1000.0,0.00014,2]
[422957329,1779675610000,-1000.0,0.00014,2]
[422957334,1779675611000,-1000.0,0.00014,2]
[422957333,1779675611000,-1000.0,0.00014,2]
[422957332,1779675611000,-1000.0,0.00014,2]
[422957335,1779675612000,-1000.0,0.00014,2]
[422957336,1779675612000,-1000.0,0.00014,2]
[422957337,1779675612000,-1000.0,0.00014,2]
[422957340,1779675613000,-1000.0,0.00014,2]
[422957339,1779675613000,-1000.0,0.00014,2]
[422957338,1779675613000,-1000.0,0.00014,2]
[422957343,1779675614000,-1000.0,0.00014,2]
[422957342,1779675614000,-1000.0,0.00014,2]
[422957341,1779675614000,-1000.0,0.00014,2]
[422957344,1779675615000,-1000.0,0.00014,2]
[422957346,1779675615000,-1000.0,0.00014,2]
[422957345,1779675615000,-1000.0,0.00014,2]
[422957349,1779675616000,-33.70500347,0.0001408,2]
[422957348,1779675616000,-966.29499653,0.00014,2]
[422957347,1779675616000,-1000.0,0.00014,2]
[422957352,1779675617000,-500.0,0.00014273,2]
[422957353,1779675617000,-356.70500347,0.00014277,2]
[422957351,1779675617000,-143.29499653,0.0001408,2]
[422957354,1779675617000,-243.29499653,0.00014277,2]
[422957356,1779675617000,-500.0,0.00014547,2]
[422957357,1779675617000,-78.09128761,0.00014678,2]
[422957358,1779675617000,-378.75460572,0.00014678,2]
[422957359,1779675617000,-500.0,0.00014821,2]
[422957360,1779675617000,-121.24539428,0.00014875,2]
[422957355,1779675617000,-178.61371586,0.00014384,2]
[422957363,1779675618000,-808.48780501,0.00015,2]
[422957361,1779675618000,-40.49219499,0.00014875,2]
[422957362,1779675618000,-151.02,0.00015,2]
[422957365,1779675619000,-808.48780501,0.00015,2]
[422957364,1779675619000,-191.51219499,0.00015,2]
[422957368,1779675620000,-309.44824077,0.00015,2]
[422957367,1779675620000,-511.93804336,0.00015,2]
[422957366,1779675620000,-178.61371587,0.00014384,2]
[422957370,1779675627000,-1000.0,0.00015,2]
[422957371,1779675628000,-1000.0,0.00015,2]
[422957372,1779675628000,-1000.0,0.00015,2]
[422957373,1779675628000,-724.400207,0.00015,2]
[422957374,1779675628000,-275.599793,0.00015,2]
[422957377,1779675629000,-1000.0,0.00015,2]
[422957376,1779675629000,-1000.0,0.00015,2]
[422957375,1779675629000,-1000.0,0.00015,2]
[422957379,1779675632000,-724.400207,0.00015,2]
[422957378,1779675632000,-1000.0,0.00015,2]
[422957380,1779675633000,178.61371587,0.00015,2]
[422957387,1779675660000,-1096.9861,0.0001485,2]
[422957391,1779675668000,-3903.0139,0.0001485,2]
[422957392,1779675668000,-503.93001717,0.00015,2]
[422957390,1779675668000,-395.37072189,0.00013699,2]
[422957389,1779675668000,-197.68536094,0.00013699,2]
[422957393,1779675675000,-500.0,0.00012896,2]
[422957395,1779675675000,-500.0,0.00013444,2]
[422957396,1779675675000,-500.0,0.00013718,2]
[422957394,1779675675000,-500.0,0.0001317,2]
[422957399,1779675675000,-500.0,0.0001454,2]
[422957401,1779675675000,-1000.0,0.0001485,2]
[422957397,1779675675000,-500.0,0.00013992,2]
[422957400,1779675675000,-500.0,0.00014814,2]
[422957398,1779675675000,-500.0,0.00014266,2]
[422957405,1779675681000,-674.71309458,0.00015,2]
[422957403,1779675681000,-325.28690542,0.00013999,2]
[422957404,1779675681000,-4000.0,0.0001485,2]
[422957406,1779675681000,-9.74015179,0.00015,2]
[422957409,1779675700000,-3205.38223009,0.00014918,2]
[422957407,1779675700000,-195.0,0.00012055,3]
[422957408,1779675700000,-180.0,0.00014795,3]
[422957410,1779675702000,500.26700315,0.00013999,2]
[422957416,1779675734000,-160.0,0.00014918,2]
[422957415,1779675734000,-212.35895445,0.00014821,2]
[422957414,1779675734000,-500.0,0.00014547,2]
[422957413,1779675734000,-500.0,0.00014273,2]
[422957411,1779675734000,-619.31,0.00013999,2]
[422957412,1779675734000,-500.0,0.00013999,2]
[422957418,1779675752000,-500.0,0.00013999,2]
[422957419,1779675752000,-500.0,0.00013999,2]
[422957420,1779675752000,-403.11065834,0.00013999,2]
[422957421,1779675767000,-500.37743295,0.00013999,2]
[422957422,1779675768000,-500.0,0.00013999,2]
[422957423,1779675768000,-882.14214703,0.00014721,2]
[422957425,1779675771000,500.0,0.00013999,2]
[422957426,1779675781000,500.71976221,0.00013999,2]
[422957427,1779675792000,500.0,0.00013999,2]
[422957429,1779675793000,246.17089882,0.00014547,2]
[422957428,1779675793000,500.0,0.00014273,2]
[422957431,1779675796000,370.58975899,0.00014273,2]
[422957430,1779675796000,500.0,0.00013999,2]
[422957435,1779675799000,-435.24578125,0.00014821,2]
[422957433,1779675799000,-129.41024101,0.00014273,2]
[422957432,1779675799000,-500.0,0.00013999,2]
[422957434,1779675799000,-500.0,0.00014547,2]
[422957436,1779675812000,-1742.16,0.00012876,2]
[422957437,1779675812000,-500.0,0.00013999,2]
[422957438,1779675812000,-421.88,0.00014273,2]
[422957439,1779675836000,-500.0,0.00013999,2]
[422957440,1779675836000,-500.0,0.00013999,2]
[422957441,1779675837000,546.74822797,0.00013999,2]
[422957442,1779675845000,-501.75477473,0.00013999,2]
[422957443,1779675845000,-500.0,0.00013999,2]
[422957444,1779675846000,165.67,0.00014273,2]
[422957449,1779675850000,-548.02,0.00014273,2]
[422957448,1779675850000,-315.20887041,0.00014273,2]
[422957447,1779675850000,-500.0,0.00013999,2]
[422957446,1779675850000,-500.0,0.00013999,2]
[422957445,1779675850000,-500.0,0.00013999,2]
[422957450,1779675852000,500.0,0.00013999,2]
[422957452,1779675947000,-940.68928368,0.00013859,2]
[422957453,1779676012000,-5000.0,0.00012178,2]
[422957456,1779676013000,-4059.31071632,0.00013859,2]
[422957455,1779676013000,-199.0,0.00012603,3]
[422957454,1779676013000,-185.0,0.00012301,2]
[422957458,1779676013000,-256.68928368,0.00013999,2]
[422957457,1779676013000,-300.0,0.00013998,2]
[422957459,1779676014000,-243.31071632,0.00013999,2]
[422957460,1779676014000,-150.82742309,0.00013999,2]
[422957461,1779676014000,-500.0,0.00013999,2]
[422957463,1779676014000,-500.0,0.00013999,2]
[422957462,1779676014000,-623.93,0.00013999,2]
[422957464,1779676014000,-500.0,0.00013999,2]
[422957466,1779676014000,-500.0,0.00013999,2]
[422957467,1779676014000,-500.0,0.00013999,2]
[422957468,1779676014000,-500.0,0.00013999,2]
[422957469,1779676014000,-481.93186059,0.00013999,2]
[422957465,1779676014000,-500.0,0.00013999,2]
[422957471,1779676015000,-500.0,0.00013999,2]
[422957470,1779676015000,-18.34423732,0.00013999,2]
[422957472,1779676015000,-520.50143561,0.00013999,2]
[422957474,1779676015000,-564.67,0.00013999,2]
[422957473,1779676015000,-501.24166841,0.00013999,2]
[422957475,1779676015000,-500.0,0.00013999,2]
[422957476,1779676015000,-501.73062882,0.00013999,2]
[422957479,1779676015000,-501.48499433,0.00013999,2]
[422957480,1779676015000,-392.02703551,0.00013999,2]
[422957478,1779676015000,-500.0,0.00013999,2]
[422957477,1779676015000,-500.0,0.00013999,2]
[422957482,1779676016000,-500.0,0.00013999,2]
[422957481,1779676016000,-107.97296449,0.00013999,2]
[422957483,1779676016000,-500.78652047,0.00013999,2]
[422957484,1779676016000,-500.92583587,0.00013999,2]
[422957485,1779676016000,-515.74,0.00013999,2]
[422957487,1779676016000,-502.17751864,0.00013999,2]
[422957488,1779676016000,-500.0,0.00013999,2]
[422957490,1779676016000,-500.22386764,0.00013999,2]
[422957489,1779676016000,-500.0,0.00013999,2]
[422957491,1779676016000,-372.17329289,0.00013999,2]
[422957486,1779676016000,-500.0,0.00013999,2]
[422957497,1779676021000,-500.0,0.00013999,2]
[422957493,1779676021000,-500.0,0.00013999,2]
[422957492,1779676021000,-127.82670711,0.00013999,2]
[422957494,1779676021000,-500.0,0.00013999,2]
[422957495,1779676021000,-500.0,0.00013999,2]
[422957498,1779676021000,-501.42712535,0.00013999,2]
[422957503,1779676021000,-160.0,0.00014269,2]
[422957500,1779676021000,-500.80419723,0.00013999,2]
[422957499,1779676021000,-500.0,0.00013999,2]
[422957502,1779676021000,-158.00644054,0.00014173,2]
[422957501,1779676021000,-502.00317063,0.00013999,2]
[422957504,1779676021000,-49.93235914,0.00014273,2]
[422957496,1779676021000,-500.0,0.00013999,2]
[422957506,1779676022000,-278.1,0.00014273,2]
[422957505,1779676022000,-450.06764086,0.00014273,2]
[422957507,1779676022000,-560.21470082,0.00014273,2]
[422957509,1779676022000,-460.47615291,0.00014273,2]
[422957510,1779676022000,-500.0,0.00014273,2]
[422957508,1779676022000,-375.86,0.00014273,2]
[422957511,1779676022000,-500.0,0.00014273,2]
[422957515,1779676022000,-500.0,0.00014273,2]
[422957516,1779676022000,-63.30212468,0.00014278,2]
[422957512,1779676022000,-407.21284237,0.00014273,2]
[422957514,1779676022000,-404.76653836,0.00014273,2]
[422957513,1779676022000,-500.0,0.00014273,2]
[422957526,1779676023000,-236.52,0.00014821,2]
[422957525,1779676023000,-500.0,0.00014821,2]
[422957527,1779676023000,-331.46212468,0.00014821,2]
[422957517,1779676023000,-300.0,0.00013998,2]
[422957521,1779676023000,-500.0,0.00014547,2]
[422957522,1779676023000,-500.0,0.00014547,2]
[422957520,1779676023000,-595.32,0.00014547,2]
[422957524,1779676023000,-500.0,0.00014821,2]
[422957518,1779676023000,-536.69787532,0.00014278,2]
[422957519,1779676023000,-500.0,0.00014547,2]
[422957523,1779676023000,-500.0,0.00014547,2]
[422957529,1779676024000,-1069.54493718,0.00015,2]
[422957530,1779676024000,3761.9171875,0.00013858,2]
[422957528,1779676024000,-168.53787532,0.00014821,2]
[422957531,1779676030000,-1238.0828125,0.00013858,2]
[422957532,1779676031000,503.02042898,0.00013999,2]
[422957534,1779676044000,-194.8969098,0.00015068,2]
[422957535,1779676044000,-113.25113255,0.0001507,2]
[422957533,1779676044000,-160.0,0.00015067,2]
[422957536,1779676057000,-500.0,0.00013858,2]
[422957538,1779676057000,-500.0,0.00013858,2]
[422957539,1779676057000,-500.0,0.00013858,2]
[422957537,1779676057000,-500.0,0.00013858,2]
[422957541,1779676057000,-500.0,0.00013858,2]
[422957542,1779676057000,-500.0,0.00013858,2]
[422957543,1779676057000,-276.78668725,0.00013999,2]
[422957540,1779676057000,-186.32616304,0.00013858,2]
[422957546,1779676095000,-500.0,0.00013858,2]
[422957545,1779676095000,-500.0,0.00013858,2]
[422957544,1779676095000,-500.0,0.00013858,2]
[422957547,1779676095000,-500.0,0.00013858,2]
[422957552,1779676095000,-500.0,0.00013858,2]
[422957550,1779676095000,-500.0,0.00013858,2]
[422957551,1779676095000,-500.0,0.00013858,2]
[422957549,1779676095000,-500.0,0.00013858,2]
[422957553,1779676095000,-500.0,0.00013858,2]
[422957548,1779676095000,-500.0,0.00013858,2]
[422957555,1779676096000,-500.0,0.00013858,2]
[422957554,1779676096000,-500.0,0.00013858,2]
[422957557,1779676096000,-500.0,0.00013858,2]
[422957556,1779676096000,-500.0,0.00013858,2]
[422957558,1779676096000,-500.0,0.00013858,2]
[422957559,1779676096000,-500.0,0.00013858,2]
[422957560,1779676096000,-500.0,0.00013858,2]
[422957561,1779676096000,-500.0,0.00013858,2]
[422957562,1779676096000,-500.0,0.00013858,2]
[422957563,1779676096000,-500.0,0.00013858,2]
[422957564,1779676097000,-500.0,0.00013858,2]
[422957566,1779676097000,-500.0,0.00013858,2]
[422957565,1779676097000,-500.0,0.00013858,2]
[422957567,1779676097000,-500.0,0.00013858,2]
[422957573,1779676097000,-500.0,0.00013858,2]
[422957568,1779676097000,-500.0,0.00013858,2]
[422957570,1779676097000,-500.0,0.00013858,2]
[422957572,1779676097000,-500.0,0.00013858,2]
[422957571,1779676097000,-500.0,0.00013858,2]
[422957569,1779676097000,-500.0,0.00013858,2]
[422957574,1779676103000,-500.0,0.00013858,2]
[422957575,1779676103000,-500.0,0.00013858,2]
[422957576,1779676103000,-500.0,0.00013858,2]
[422957578,1779676103000,-500.0,0.00013858,2]
[422957577,1779676103000,-500.0,0.00013858,2]
[422957580,1779676103000,-500.0,0.00013858,2]
[422957582,1779676103000,-500.0,0.00013858,2]
[422957581,1779676103000,-500.0,0.00013858,2]
[422957583,1779676103000,-500.0,0.00013858,2]
[422957584,1779676103000,-164.69992399,0.00013858,2]
[422957579,1779676103000,-335.30007601,0.00013858,2]
[422957586,1779676104000,-500.0,0.00013858,2]
[422957587,1779676104000,-500.0,0.00013858,2]
[422957588,1779676104000,-500.0,0.00013858,2]
[422957585,1779676104000,-335.30007601,0.00013858,2]
[422957589,1779676104000,-500.0,0.00013858,2]
[422957591,1779676104000,-500.0,0.00013858,2]
[422957592,1779676104000,-500.0,0.00013858,2]
[422957590,1779676104000,-500.0,0.00013858,2]
[422957593,1779676104000,-500.0,0.00013858,2]
[422957594,1779676104000,-500.0,0.00013858,2]
[422957595,1779676105000,-164.69992399,0.00013858,2]
[422957596,1779676111000,-335.30007601,0.00013858,2]
[422957599,1779676111000,-500.0,0.00013858,2]
[422957597,1779676111000,-500.0,0.00013858,2]
[422957598,1779676111000,-500.0,0.00013858,2]
[422957600,1779676111000,-500.0,0.00013858,2]
[422957605,1779676111000,-633.5300076,0.00013858,2]
[422957601,1779676111000,-500.0,0.00013858,2]
[422957603,1779676111000,-500.0,0.00013858,2]
[422957604,1779676111000,-500.0,0.00013858,2]
[422957606,1779676111000,-31.16991639,0.00013858,2]
[422957602,1779676111000,-500.0,0.00013858,2]
[422957611,1779676120000,-579.0,0.00013999,2]
[422957612,1779676120000,-535.57646263,0.00013999,2]
[422957613,1779676120000,-506.93937878,0.00013999,2]
[422957610,1779676120000,-500.0,0.00013999,2]
[422957608,1779676120000,-501.57710042,0.00013999,2]
[422957607,1779676120000,-150.0,0.00013928,2]
[422957609,1779676120000,-500.0,0.00013999,2]
[422957615,1779676121000,486.35388705,0.00013998,2]
[422957614,1779676121000,500.0,0.00013998,2]
[422957617,1779676121000,386.51693078,0.00013998,2]
[422957616,1779676121000,354.03624034,0.00013998,2]
[422957622,1779676128000,-335.30007601,0.00013998,2]
[422957623,1779676128000,-500.0,0.00013999,2]
[422957619,1779676128000,-500.0,0.00013998,2]
[422957621,1779676128000,-500.0,0.00013998,2]
[422957620,1779676128000,-500.0,0.00013998,2]
[422957618,1779676128000,-113.48306922,0.00013998,2]
[422957624,1779676130000,500.50308923,0.00013999,2]
[422957625,1779676158000,-500.0,0.00013999,2]
[422957626,1779676159000,-165.28050024,0.00014273,2]
[422957630,1779676159000,-273.486313,0.00014556,2]
[422957629,1779676159000,-623.63679525,0.00014547,2]
[422957628,1779676159000,-579.31,0.00014273,2]
[422957627,1779676159000,-500.0,0.00014273,2]
[422957632,1779676201000,-623.20528415,0.00013998,2]
[422957631,1779676201000,-500.0,0.00013998,2]
[422957633,1779676201000,-582.47036947,0.00013999,2]
[422957635,1779676202000,445.08935222,0.00013999,2]
[422957634,1779676202000,500.72064171,0.00013999,2]
[422957636,1779676214000,-501.76157095,0.00013998,2]
[422957637,1779676226000,-500.0,0.00013999,2]
[422957714,1779676232000,-535.63611527,0.00014547,2]
[422957711,1779676232000,-500.0,0.00014273,2]
[422957707,1779676232000,-500.71790021,0.00013999,2]
[422957823,1779676238000,-864.63244899,0.00015079,2]
[422957821,1779676238000,-135.36755101,0.00015079,2]
[422957825,1779676238000,-160.0,0.00015079,2]
[422957819,1779676238000,-161.74769687,0.00015063,2]
[422957827,1779676238000,-500.0,0.00015088,2]
[422957818,1779676238000,-500.0,0.00013998,2]
[422957829,1779676238000,-315.32790352,0.00015095,2]
[422957841,1779676238000,-500.0,0.00015362,2]
[422957833,1779676238000,-1069.54493718,0.000152,2]
[422957831,1779676238000,-212.67054326,0.00015095,2]
[422957837,1779676238000,-675.76975909,0.000153,2]
[422957839,1779676238000,-185.0,0.00015301,2]
[422957845,1779676238000,-49.98801043,0.00015495,2]
[422957843,1779676238000,-574.77774851,0.00015378,2]
[422957835,1779676238000,-393.77517809,0.000153,2]
[422958060,1779676240000,-574.77774851,0.00015962,2]
[422958069,1779676240000,-500.0,0.00015999,2]
[422958058,1779676240000,-177.0,0.00015928,2]
[422958067,1779676240000,-336.14311809,0.00015999,2]
[422958073,1779676240000,-1000.0,0.00016,2]
[422958081,1779676240000,-255.56152485,0.000161,2]
[422958077,1779676240000,-150.0,0.00016,2]
[422958079,1779676240000,-574.77774851,0.00016065,2]
[422958083,1779676240000,-1069.54493718,0.000161,2]
[422958087,1779676240000,-500.0,0.00016199,2]
[422958054,1779676240000,-1069.54493718,0.000159,2]
[422958071,1779676240000,-578.32,0.00015999,2]
[422958056,1779676240000,-500.0,0.0001591,2]
[422958091,1779676240000,-500.0,0.00016199,2]
[422958065,1779676240000,-500.7509208,0.00015999,2]
[422958052,1779676240000,-255.56152485,0.000159,2]
[422958049,1779676240000,-160.0,0.0001589,3]
[422958061,1779676240000,-500.0,0.00015999,2]
[422958050,1779676240000,-500.0,0.00015899,2]
[422958037,1779676240000,-255.56152485,0.000156,2]
[422958039,1779676240000,-1069.54493718,0.000156,2]
[422958033,1779676240000,-323.74740877,0.00015495,2]
[422958035,1779676240000,-1069.54493718,0.000155,2]
[422958047,1779676240000,-1069.54493718,0.000158,2]
[422958043,1779676240000,-500.0,0.00015636,2]
[422958041,1779676240000,-574.77774851,0.00015614,2]
[422958045,1779676240000,-255.56152485,0.000158,2]
[422958063,1779676240000,-500.0,0.00015999,2]
[422958096,1779676240000,-500.0,0.00016199,2]
[422958075,1779676240000,-2465.79644986,0.00016,2]
[422958085,1779676240000,-500.0,0.00016184,2]
[422958144,1779676240000,-500.0,0.00016547,2]
[422958146,1779676240000,-2313.7229476,0.000166,2]
[422958130,1779676240000,-600.0,0.00016318,2]
[422958135,1779676240000,-500.0,0.00016458,2]
[422958138,1779676240000,-2465.79644986,0.000165,2]
[422958133,1779676240000,-200.0,0.00016438,2]
[422958139,1779676240000,-773.1799,0.00016504,7]
[422958132,1779676240000,-1069.54493718,0.000164,2]
[422958126,1779676240000,-325.9269536,0.00016317,2]
[422958128,1779676240000,-151.0,0.00016317,2]
[422958102,1779676240000,-2465.79644986,0.000162,2]
[422958104,1779676240000,-1069.54493718,0.000162,2]
[422958107,1779676240000,-500.0,0.00016273,2]
[422958109,1779676240000,-178.625,0.0001629,2]
[422958089,1779676240000,-153.16870414,0.00016199,2]
[422958105,1779676240000,-500.0,0.00016273,2]
[422958094,1779676240000,-296.07239567,0.00016199,2]
[422958092,1779676240000,-500.0,0.00016199,2]
[422958098,1779676240000,-500.0,0.00016199,2]
[422958142,1779676240000,-249.37,0.00016547,2]
[422958100,1779676240000,-255.56152485,0.000162,2]
[422958111,1779676240000,-154.0,0.0001629,2]
[422958124,1779676240000,-151.0,0.00016317,2]
[422958115,1779676240000,-278.4399435,0.00016313,2]
[422958117,1779676240000,-456.659681,0.00016313,2]
[422958118,1779676240000,-180.6013587,0.00016313,2]
[422958122,1779676240000,-151.0,0.00016317,2]
[422958120,1779676240000,-151.5836978,0.00016316,2]
[422958113,1779676240000,-2465.79644986,0.000163,2]
[422958338,1779676242000,500.87164757,0.00013999,2]
[422958330,1779676242000,-152.07350226,0.000166,2]
[422958332,1779676242000,-347.92649774,0.000167,2]
[422958477,1779676243000,-97.35438975,0.000168,2]
[422958475,1779676243000,-500.0,0.00016732,2]
[422958474,1779676243000,-4585.09456364,0.000167,2]
[422958476,1779676243000,-2465.79644986,0.000168,2]
[422958552,1779676246000,-500.0,0.00015899,2]
[422958553,1779676246000,-153.13479756,0.00016173,2]
[422958554,1779676246000,-53.64561025,0.000168,2]
[422958556,1779676246000,-151.0,0.000168,2]
[422958557,1779676246000,-500.0,0.00016821,2]
[422958559,1779676246000,-2465.79644986,0.00017,2]
[422958558,1779676246000,-1000.0,0.00017,2]
[422958565,1779676246000,-456.6433121,0.00017135,2]
[422958564,1779676246000,-213.1587491,0.00017135,2]
[422958555,1779676246000,-151.0,0.000168,2]
[422958562,1779676246000,-326.0270599,0.00017135,2]
[422958570,1779676246000,-500.0,0.0001728,2]
[422958573,1779676246000,-154.0,0.0001729,2]
[422958569,1779676246000,-151.0,0.000172,2]
[422958560,1779676246000,-500.0,0.00017006,2]
[422958563,1779676246000,-532.2499882,0.00017135,2]
[422958567,1779676246000,-2465.79644986,0.000172,2]
[422958561,1779676246000,-500.0,0.00017095,2]
[422958577,1779676247000,-500.0,0.00017369,2]
[422958581,1779676247000,-500.0,0.00017828,2]
[422958580,1779676247000,-500.0,0.00017643,2]
[422958578,1779676247000,-2465.79644986,0.000175,2]
[422958579,1779676247000,-500.0,0.00017554,2]
[422958574,1779676247000,-2465.79644986,0.000173,2]
[422958576,1779676247000,-151.0,0.000173,2]
[422958585,1779676247000,-204.0,0.00017928,2]
[422958586,1779676247000,-56851.26311771,0.00017945,2]
[422958575,1779676247000,-151.0,0.000173,2]
[422958583,1779676247000,-500.0,0.00017917,2]
[422958588,1779676329000,-188.0,0.00012055,3]
[422958589,1779676335000,696.0,0.000178,120]
[422958591,1779676345000,500.0,0.000178,120]
[422958592,1779676348000,500.0,0.000178,120]
[422958600,1779676734000,-152.0,0.00010258,7]
[422958603,1779677145000,-961.28928138,0.00010697,2]
[422958605,1779677235000,-409.58916836,0.00010697,2]
[422958667,1779677432000,-5000.0,0.00010379,2]
[422958670,1779677432000,-3343.08908995,0.00010484,2]
[422959328,1779677442000,-500.0,0.00011021,2]
[422959297,1779677442000,-500.0,0.00010588,2]
[422959299,1779677442000,-500.0,0.00010588,2]
[422959287,1779677442000,-500.0,0.00010588,2]
[422959282,1779677442000,-346.20215293,0.00010588,2]
[422959284,1779677442000,-500.0,0.00010588,2]
[422959295,1779677442000,-500.0,0.00010588,2]
[422959291,1779677442000,-500.0,0.00010588,2]
[422959280,1779677442000,-500.0,0.00010588,2]
[422959278,1779677442000,-181.10250795,0.00010588,2]
[422959276,1779677442000,-322.0,0.00010588,2]
[422959274,1779677442000,-300.0,0.00010588,2]
[422959272,1779677442000,-150.0,0.00010536,2]
[422959271,1779677442000,-1656.91091005,0.00010484,2]
[422959289,1779677442000,-500.0,0.00010588,2]
[422959286,1779677442000,-500.0,0.00010588,2]
[422959293,1779677442000,-500.0,0.00010588,2]
[422959302,1779677442000,-500.0,0.00010588,2]
[422959332,1779677442000,-554.23,0.00011022,2]
[422959301,1779677442000,-500.0,0.00010588,2]
[422959330,1779677442000,-500.0,0.00011021,2]
[422959334,1779677442000,-169.54157582,0.00011022,2]
[422959326,1779677442000,-500.0,0.00011021,2]
[422959320,1779677442000,-500.0,0.00011021,2]
[422959317,1779677442000,-500.0,0.00011021,2]
[422959312,1779677442000,-60.76536636,0.00010588,2]
[422959321,1779677442000,-334.49246632,0.00011021,2]
[422959324,1779677442000,-500.0,0.00011021,2]
[422959311,1779677442000,-439.23463364,0.00010588,2]
[422959309,1779677442000,-500.0,0.00010588,2]
[422959308,1779677442000,-500.0,0.00010588,2]
[422959314,1779677442000,-500.0,0.00010588,2]
[422959306,1779677442000,-500.0,0.00010588,2]
[422959304,1779677442000,-548.77693818,0.00010588,2]
[422959424,1779677444000,-289.21213238,0.00011022,2]
[422959471,1779677447000,-537.6158005,0.00011022,2]
[422959467,1779677447000,-500.0,0.00011022,2]
[422959472,1779677447000,-501.06774073,0.00011022,2]
[422959473,1779677447000,-500.0,0.00011022,2]
[422959482,1779677447000,-500.0,0.00011022,2]
[422959461,1779677447000,-500.0,0.00011022,2]
[422959479,1779677447000,-500.0,0.00011022,2]
[422959476,1779677447000,-500.0,0.00011022,2]
[422959474,1779677447000,-500.70275363,0.00011022,2]
[422959477,1779677447000,-500.0,0.00011022,2]
[422959475,1779677447000,-500.0,0.00011022,2]
[422959483,1779677447000,-500.0,0.00011022,2]
[422959481,1779677447000,-500.0,0.00011022,2]
[422959480,1779677447000,-500.0,0.00011022,2]
[422959463,1779677447000,-500.0,0.00011022,2]
[422959478,1779677447000,-500.71383941,0.00011022,2]